[Event "Fagernes GM Open Autumn 2024"]
[Site "Fagernes"]
[Date "2024.10.06"]
[Round "1.7"]
[White "Soham Datar"]
[Black "Mitusov, Semen"]
[Result "0-1"]
[ECO "B23"]
[WhiteElo "2188"]
[BlackElo "2486"]
[Annotator "TA"]
[PlyCount "74"]
[EventDate "2024.10.03"]
[EventType "swiss"]
[EventCountry "NOR"]
[SourceTitle "playchess.com"]
[Source "ChessBase"]
[SourceQuality "1"]
[TimeControl "40/6000:2400+30"]

{[%evp 14,74,-7,-28,59,-41,-43,-63,-4,-32,0,0,0,-5,0,-8,14,0,30,37,116,43,39,0,0,-110,-118,-193,-194,-258,-271,-375,-359,-418,-428,-429,-424,-479,-480,-489,-477,-489,-487,-477,-464,-573,-585,-573,-551,-564,-553,-591,-657,-734,-727,-991,-991,-966,-962,-29981,-29982,-29981,-29981]} 1. e4 {[%emt 0:00:00]} c5 {[%emt 0:00:00]} 2. Nc3 {[%emt 0:00:00]} d6 {[%emt 0:03:57]} 3. f4 {[%emt 0:00:00]} Nc6 {[%emt 0:00:28]} 4. Nf3 {[%emt 0:00:00]} g6 {[%emt 0:00:18]} 5. Bc4 {[%emt 0:01:47]} Bg7 {[%emt 0:00:00]} 6. O-O {[%emt 0:00:00]} e6 {[%emt 0:00:34]} 7. d3 {[%emt 0:03:18]} Nge7 {[%emt 0:00:00]} 8. f5 {[%emt 0:01:24]} gxf5 {[%emt 0:06:36]} (8... exf5 $11 9. Qe1 h6) 9. Bg5 {[%emt 0:01:43]} (9. Ng5 $1 $14 h6 10. Nxf7 Kxf7 11. Qh5+ Kg8 12. exf5 Bd4+ 13. Kh1) 9... h6 $15 {[%emt 0:04:52]} 10. Bh4 {[%emt 0:00:40]} fxe4 {[%emt 0:22:35]} (10... Qb6 $15) 11. dxe4 {[%emt 0:08:37]} a6 {[%emt 0:00:56] Inhibits Nb5.} 12. a4 {[%emt 0:02:21]} Qc7 {[%emt 0:05:35]} 13. Bg3 {[%emt 0:02:54]} Nd4 {[%emt 0:03:03]} 14. Ne2 {[%emt 0:06:43]} Ng6 {[%emt 0:13:13]} 15. Ra3 {[%emt 0:10:02]} O-O {[%emt 0:04:43]} 16. Nf4 {[%emt 0:17:08]} Qe7 {[%emt 0:02:32]} ({Black should try} 16... Rb8 $14) 17. Nxd4 {[%emt 0:02:33]} ({White should play} 17. Nh5 $16) 17... cxd4 $14 {[%emt 0:01:40]} 18. Qh5 {[%emt 0:08:30]} Kh7 {[%emt 0:04:55]} 19. h4 {[%emt 0:07:54]} (19. Bd3 $11 {keeps the balance.}) 19... Bd7 $17 {[%emt 0:02:11] Black converts the advantage convincingly.} 20. Nh3 {[%emt 0:01:13]} (20. Qe2 $17) 20... Rac8 $19 {[%emt 0:02:31]} 21. Raf3 {[%emt 0:03:53]} (21. Qe2 $142) 21... Kg8 {[%emt 0:02:32]} (21... Rxc4 22. Ng5+ Kg8 23. Rxf7 Rxf7 24. Rxf7 Qxf7 25. Nxf7 Kxf7 26. Qf3+ Bf6 27. Bxd6 $17) 22. Bb3 {[%emt 0:06:04]} Rc5 {[%emt 0:00:12]} 23. Rf5 {[%emt 0:00:14]} (23. Qg4 $2 h5 $19) 23... exf5 {[%emt 0:00:30]} 24. Qxg6 {[%emt 0:00:00]} Be6 {[%emt 0:02:40]} (24... fxe4 $2 {is the wrong capture.} 25. Bxd6 $18) ({Don't play} 24... Qxe4 25. Qxd6 Bc6 26. Rf2 $19) 25. Bxe6 {[%emt 0:00:00]} fxe6 {[%emt 0:00:00]} ({Not} 25... Qxe6 26. Qxe6 fxe6 27. Bxd6 Rxc2 28. Bxf8 Bxf8 29. exf5 exf5 (29... Rxb2 30. fxe6 Bc5 31. Rd1 $15) 30. Rf3 $19) 26. exf5 {[%emt 0:02:15]} Rcxf5 {[%emt 0:00:00]} 27. Rxf5 {[%emt 0:00:26]} Rxf5 {[%emt 0:00:00]} 28. Qg4 {[%emt 0:00:24]} Kh7 {[%emt 0:01:29]} 29. h5 {[%emt 0:01:55]} d5 {[%emt 0:03:40]} 30. Nf4 {[%emt 0:03:21]} Qg5 {[%emt 0:01:13]} 31. Qxg5 {[%emt 0:00:27]} Rxg5 {[%emt 0:00:11][%mdl 4096] Endgame. KRB-KBN} 32. Bf2 {[%emt 0:00:00]} e5 {[%emt 0:00:27]} 33. Nxd5 {[%emt 0:00:00]} Rxh5 {[%emt 0:00:00] Strongly threatening ...e4.} 34. b4 {[%emt 0:00:27]} e4 {[%emt 0:00:00]} 35. Nf4 {[%emt 0:00:00]} Rf5 {[%emt 0:00:00]} 36. Ne2 {[%emt 0:00:00]} d3 {[%emt 0:00:00]} 37. cxd3 {[%emt 0:00:00]} exd3 {[%emt 0:00:00] Weighted Error Value: White=0.65/Black=0.16 (very precise) .  Mistake:       	White=5     	Black=2      Inaccurate:     	White=3     	Black=2      OK:         	White=5     	Black=12     Best:        	White=4     	---} 0-1

[Event "Fagernes GM Open Autumn 2024"]
[Site "Fagernes"]
[Date "2024.10.06"]
[Round "1.8"]
[White "Kvaloy, Aksel Bu"]
[Black "Sian, Shadi"]
[Result "1-0"]
[ECO "E04"]
[WhiteElo "2484"]
[BlackElo "2182"]
[Annotator "TA"]
[PlyCount "133"]
[EventDate "2024.10.03"]
[EventType "swiss"]
[EventCountry "NOR"]
[SourceTitle "playchess.com"]
[Source "ChessBase"]
[SourceQuality "1"]
[TimeControl "40/6000:2400+30"]

1. d4 {[%emt 0:00:00]} d5 {[%emt 0:00:19]} 2. c4 {[%emt 0:00:00]} e6 {[%emt 0:00:00]} 3. Nf3 {[%emt 0:00:00]} Nf6 {[%emt 0:00:00]} 4. g3 {[%emt 0:00:00]} dxc4 {[%emt 0:00:00]} 5. Bg2 {[%emt 0:00:00]} Nc6 {[%emt 0:00:00]} 6. O-O {[%emt 0:01:26]} Rb8 {[%emt 0:00:00]} 7. a4 {[%emt 0:00:00]} b6 {[%emt 0:05:40]} 8. Nc3 {[%emt 0:10:04] E04: Open Catalan: 5 Nf3.} Bb7 {[%emt 0:01:06]} 9. e4 {[%emt 0:02:17]} Na5 {[%emt 0:06:23]} 10. Qe2 {[%emt 0:01:41]} Bb4 {[%emt 0:09:13]} 11. Bg5 $146 {[%emt 0:11:13]} ({Predecessor:} 11. e5 Nd5 12. Ne4 h6 13. h4 Ba6 14. Rd1 Qc8 15. Nh2 c3 16. Qc2 Bc4 17. bxc3 {0-1 Xiao,Y (2222)-Zhang,X (2374) CHN-chT China 2016 (5.5)}) 11... h6 {[%emt 0:08:45]} 12. Bxf6 {[%emt 0:00:20]} Qxf6 {[%emt 0:03:52]} 13. Ne5 {[%emt 0:04:03]} Rd8 {[%emt 0:14:43]} 14. Nxc4 {[%emt 0:03:42]} Bxc3 {[%emt 0:14:51]} 15. bxc3 {[%emt 0:03:42]} Ba6 {[%emt 0:01:46]} 16. Nd6+ cxd6 {[%emt 0:00:00]} 17. Qxa6 {[%emt 0:00:00]} Qe7 {[%emt 0:00:00]} 18. f4 {[%emt 0:04:09]} O-O {[%emt 0:00:00]} 19. Qd3 {[%emt 0:02:09]} Qc7 {[%emt 0:10:47]} 20. g4 {[%emt 0:10:44]} Rc8 {[%emt 0:05:22]} 21. Rf3 {[%emt 0:00:07]} e5 {[%emt 0:02:22]} 22. f5 {[%emt 0:06:27]} Rfe8 {[%emt 0:03:29]} 23. Re1 {[%emt 0:06:06]} Qc4 {[%emt 0:02:00]} 24. Qe3 {[%emt 0:00:34]} exd4 {[%emt 0:00:27]} (24... Qxa4 25. g5 exd4 26. cxd4 $11) 25. cxd4 {[%emt 0:01:23]} Nc6 {[%emt 0:00:00]} 26. Rd1 {[%emt 0:00:38]} Qxa4 {[%emt 0:01:42]} 27. Rff1 {[%emt 0:00:15]} Nb4 {[%emt 0:01:37]} 28. Kh1 {[%emt 0:14:15]} (28. Qg3 $11) 28... Nc2 {[%emt 0:00:28]} (28... Nd5 $17 29. Qg1 Nf6) 29. Qf2 $2 {[%emt 0:00:16]} (29. Qh3 $11) 29... Qb3 {[%emt 0:00:14]} 30. Rc1 {[%emt 0:03:29]} (30. f6 $142 Qe3 (30... Ne3 31. Rb1 $19) 31. fxg7 Qxf2 32. Rxf2) 30... Ne3 $19 {[%emt 0:01:19]} 31. Qf3 {[%emt 0:00:19]} Rxc1 {[%emt 0:00:00]} (31... Nxf1 $142 32. Qxb3 (32. Rxc8 $2 Ng3+ 33. hxg3 Qb1+ 34. Kh2 Rxc8 $19) 32... Rxc1 33. Bxf1 Rxf1+ 34. Kg2 Rf4) 32. Rxc1 $19 {[%emt 0:00:00]} Qa3 {[%emt 0:00:00]} (32... a5 $19 {...a4 would now be deadly.} 33. Re1 Rc8 34. Qxe3 (34. Rxe3 $2 Rc1+ 35. Bf1 Rxf1+ 36. Qxf1 Qxe3 $19) 34... Qxe3 35. Rxe3 Rc1+ 36. Bf1 Rxf1+ 37. Kg2 Rb1 (37... Rd1 $2 38. Rb3 $19)) 33. Re1 $17 {[%emt 0:04:10]} Nc2 {[%emt 0:00:00]} 34. Qxa3 {[%emt 0:00:00]} Nxa3 {[%emt 0:00:00]} 35. Rc1 {[%emt 0:04:10]} (35. Ra1 $142 Rc8 36. Bf1) 35... Nb5 $17 {[%emt 0:00:57]} 36. Rc4 {[%emt 0:00:00]} (36. Kg1 $17) 36... Re7 {[%emt 0:01:07]} 37. h4 {[%emt 0:00:00]} (37. Rc8+ {might work better.} Kh7 38. Rd8) 37... Rc7 $1 $19 {[%emt 0:00:23]} 38. Rb4 {[%emt 0:00:00]} Nc3 {[%emt 0:00:14]} 39. e5 {[%emt 0:00:00]} dxe5 {[%emt 0:00:05]} 40. dxe5 {[%emt 0:00:00]} Kf8 {[%emt 0:00:07]} ({Better is} 40... Rc5 $19 41. Rd4 Rxe5 42. Rd8+ Kh7) 41. f6 $15 {[%emt 0:41:32]} g5 {[%emt 0:07:47]} (41... gxf6 $17 42. exf6 Kg8) 42. Rd4 $11 {[%emt 0:00:00]} Ke8 {[%emt 0:00:55]} (42... gxh4 43. Rd8#) 43. Rd6 {[%emt 0:00:00]} Rc8 $1 {[%emt 0:02:34]} (43... gxh4 $2 44. Bc6+ Rxc6 45. Rxc6 $18) 44. Bb7 {[%emt 0:00:00]} Rb8 {[%emt 0:02:29]} 45. Bc6+ {[%emt 0:00:00]} Kf8 {[%emt 0:00:04]} 46. hxg5 {[%emt 0:00:00]} hxg5 {[%emt 0:00:01]} 47. Rd3 {[%emt 0:00:00]} Ne2 {[%emt 0:00:05]} 48. Rd7 {[%emt 0:00:00]} Nf4 $1 {[%emt 0:05:01]} 49. Rxa7 {[%emt 0:00:00]} Ng6 {[%emt 0:00:16]} 50. e6 {[%emt 0:00:00]} fxe6 {[%emt 0:00:24]} 51. Be4 {[%emt 0:00:00]} Ne5 {[%emt 0:01:56]} 52. Rh7 {[%emt 0:00:00]} Re8 $2 {[%emt 0:07:37][%mdl 8192]} (52... Nxg4 $11 53. Rh8+ Kf7 54. Rxb8 Nf2+ 55. Kg2 Nxe4) 53. Kg2 $18 {[%emt 0:00:00]} b5 {[%emt 0:00:51]} (53... Nxg4 54. f7 (54. Bg6 Nxf6 55. Rf7+ Kg8 $16) 54... Rd8 (54... Re7 $2 55. Bg6 $18) 55. Rh8+ Kxf7 56. Rxd8 $18) 54. Kg3 {[%emt 0:00:00]} b4 {[%emt 0:00:56]} 55. Bc2 $1 {[%emt 0:00:00]} Kg8 {[%emt 0:14:52]} 56. Rg7+ {[%emt 0:00:00]} Kf8 {[%emt 0:00:06] [#]} 57. Rxg5 $2 {[%emt 0:02:40]} (57. Bh7 $1 $18 Nc6 58. Rg8+ (58. Rxg5 Rb8 $18) 58... Kf7 59. Bg6+ (59. Rxg5 Kxf6 60. Rc5 Ne7 $11) 59... Kxf6 60. Rxe8 (60. Bxe8 Ne7 $18)) 57... Nd7 $11 {[%emt 0:00:14]} 58. Ba4 {[%emt 0:04:50]} Rd8 {[%emt 0:01:19]} 59. Bxd7 {[%emt 0:00:08]} Rxd7 {[%emt 0:00:01]} 60. Rh5 {[%emt 0:00:55]} Rd5 {[%emt 0:02:30]} 61. Rh7 {[%emt 0:00:39]} Rb5 $2 {[%emt 0:00:59][%mdl 8192] [#]} (61... b3 $11 62. Rb7 Ke8) 62. Kh4 $1 {[%emt 0:00:42]} Kg8 {[%emt 0:00:39]} 63. Rg7+ {[%emt 0:00:10]} (63. f7+ $142 Kf8 64. g5 Rf5 65. g6 Rf4+ 66. Kg3 Rf1 67. Rh8+ Kg7 68. Rg8+ Kh6 69. f8=Q+ (69. f8=B+ Kg5 $18) 69... Rxf8 70. Rxf8) 63... Kh8 {[%emt 0:00:18]} 64. g5 {[%emt 0:00:35]} b3 {[%emt 0:00:40]} 65. g6 {[%emt 0:01:15]} b2 {[%emt 0:00:28]} 66. Rh7+ {[%emt 0:00:06]} Kg8 {[%emt 0:00:08]} 67. f7+ {[%emt 0:00:10]} 1-0

[Event "Fagernes GM Open Autumn 2024"]
[Site "Fagernes"]
[Date "2024.10.06"]
[Round "1.9"]
[White "Vijayakumar, Rishi"]
[Black "Bazakutsa, Svyatoslav"]
[Result "0-1"]
[ECO "A65"]
[WhiteElo "2172"]
[BlackElo "2483"]
[Annotator "TA"]
[PlyCount "88"]
[EventDate "2024.10.03"]
[EventType "swiss"]
[EventCountry "NOR"]
[SourceTitle "playchess.com"]
[Source "ChessBase"]
[SourceQuality "1"]
[TimeControl "40/6000:2400+30"]

{[%evp 20,88,35,46,49,27,35,51,45,20,31,31,66,50,39,48,56,54,52,0,0,0,7,0,0,-76,-60,-35,0,0,0,0,0,0,0,-30,-8,-18,-21,-107,0,0,0,-70,-70,-65,-65,-307,-295,-415,-397,-435,-458,-577,-573,-700,-684,-685,-596,-579,-498,-810,-754,-1631,-941,-29948,-10278,-29988,-29989,-29989,-29990]} 1. d4 {[%emt 0:00:00]} Nf6 {[%emt 0:02:56]} 2. c4 {[%emt 0:00:00]} g6 {[%emt 0:00:00]} 3. f3 {[%emt 0:00:00]} Bg7 {[%emt 0:00:00]} 4. e4 {[%emt 0:00:00]} d6 {[%emt 0:00:00]} 5. Nc3 {[%emt 0:00:00]} O-O {[%emt 0:00:00]} 6. Be3 {[%emt 0:00:00]} c5 {[%emt 0:00:00]} 7. Nge2 {[%emt 0:00:00]} Nc6 {[%emt 0:00:00]} 8. d5 {[%emt 0:00:00]} Ne5 {[%emt 0:00:00]} 9. Ng3 {[%emt 0:00:00]} e6 {[%emt 0:00:00]} 10. Be2 {[%emt 0:00:00]} exd5 {[%emt 0:00:00]} 11. cxd5 {[%emt 0:00:00]} b5 {[%emt 0:00:00]} 12. Bxb5 {[%emt 0:11:00]} Rb8 {[%emt 0:00:00]} 13. Rb1 {[%emt 0:32:06]} h5 {[%emt 0:00:00][%cal Bh7h5,Bh5h4,Bh4h3][%mdl 32] White is slightly better.} 14. O-O {[%emt 0:00:42]} h4 {[%emt 0:00:00]} 15. Nh1 {[%emt 0:06:07]} h3 {[%emt 0:00:00]} 16. g3 {[%emt 0:02:55]} Qa5 {[%emt 0:00:00]} 17. Be2 {[%emt 0:07:14]} Ba6 $1 {[%emt 0:00:00]} 18. Nf2 {[%emt 0:01:08][%cal Oe2a6]} Nc4 {[%emt 0:01:15]} 19. Qc1 {[%emt 0:08:13]} Nxe3 {[%emt 0:34:12]} 20. Qxe3 {[%emt 0:00:00][%cal Oe3d2]} Nd7 {[%emt 0:00:11]} 21. Bxa6 {[%emt 0:07:18]} (21. Nxh3 $2 Bd4 $19) 21... Qxa6 {[%emt 0:00:00]} 22. b3 {[%emt 0:06:42]} (22. Nxh3 $2 Bd4 $19) (22. Qd2 $11 {remains equal.}) 22... Bd4 $17 {[%emt 0:13:49] White is weak on the dark squares} 23. Qe2 {[%emt 0:00:00]} Rb6 {[%emt 0:00:00][%cal Bb8b6,Bb6a6,Ba6a2,Ba2b2][%mdl 32]} 24. Qxa6 {[%emt 0:01:02]} Rxa6 {[%emt 0:00:00]} 25. Nb5 {[%emt 0:01:45] Strongly threatening Nxd4.} Rxa2 {[%emt 0:02:43]} 26. Nxd4 {[%emt 0:00:29]} cxd4 {[%emt 0:00:00]} 27. Ra1 {[%emt 0:06:01]} Rb2 {[%emt 0:01:42]} 28. Nxh3 {[%emt 0:05:27]} Rc8 {[%emt 0:00:41] ...Rcc2 would now be deadly.} 29. Rf2 {[%emt 0:00:29]} (29. Rxa7 Rcc2 30. Rf2 (30. Rxd7 $2 Rg2+ 31. Kh1 Rxh2+ 32. Kg1 Rbg2#) 30... d3 $19) (29. Rad1 $11) 29... Rcc2 {[%emt 0:15:42]} (29... Rxb3 $17 {...d3 is the strong threat.} 30. Rxa7 Ne5) 30. Rxc2 {[%emt 0:00:17]} (30. Rxa7 d3 31. Ra8+ (31. Rxd7 $2 d2 $19) 31... Kg7 $19) 30... Rxc2 $11 {[%emt 0:00:00][%mdl 4096] Endgame. KRN-KRN} 31. f4 {[%emt 0:00:20]} ({Reject} 31. Rxa7 Ne5 32. Nf2 Nxf3+ 33. Kg2 Ne5 $17) ({White should play} 31. Rd1 $11) 31... Nc5 $1 $15 {[%emt 0:01:00][%csl LRb3,LRe4]} 32. Nf2 {[%emt 0:00:02] [#] Black must now prevent b4.} d3 $1 {[%emt 0:00:00] Threatens to win with ...d2. Black is much more active.} 33. Rd1 {[%emt 0:00:11] Now White is beyond hope.} ({White should try} 33. b4 $15 d2 34. Rf1 (34. bxc5 $2 {perishes.} Rc1+ 35. Kg2 Rxa1 $19)) 33... d2 $19 {[%emt 0:00:00]} (33... Nxb3 34. Rxd3 Nc5 35. Ra3 $16) 34. Kf1 {[%emt 0:00:00]} (34. b4 $142 Na4 35. Kg2) 34... Nxb3 {[%emt 0:00:00]} 35. e5 {[%emt 0:00:00]} dxe5 {[%emt 0:03:21]} 36. fxe5 {[%emt 0:00:00]} a5 {[%emt 0:00:00]} 37. d6 {[%emt 0:00:00]} Kf8 {[%emt 0:00:00]} 38. Nd3 {[%emt 0:00:00]} a4 {[%emt 0:00:23]} 39. Nb4 {[%emt 0:00:01]} Rc4 {[%emt 0:02:59]} 40. Nd5 {[%emt 0:00:00]} (40. Na2 $142 Rc2 41. Nb4) 40... Ke8 {[%emt 0:00:24] [#] Hoping for ...a3.} 41. Ke2 {[%emt 0:26:06]} a3 {[%emt 0:02:45]} 42. Rf1 {[%emt 0:08:13]} Rc1 {[%emt 0:02:03] ( -> ...Rxf1)} 43. Nc7+ {[%emt 0:00:46]} Kd7 {[%emt 0:00:46]} 44. Rxf7+ {[%emt 0:00:10]} Kc6 {[%emt 0:00:15] Weighted Error Value: White=0.89/Black=0.06 (flawless) .  Loses game:     	White=1     	---        Mistake:       	White=5     	Black=1      Inaccurate:     	White=3     	Black=2      OK:         	White=10    	Black=9      Best:        	---       	Black=7      Strong:       	---       	Black=3} 0-1

[Event "Fagernes GM Open Autumn 2024"]
[Site "Fagernes"]
[Date "2024.10.06"]
[Round "1.10"]
[White "Das, Sayantan"]
[Black "Myagmarsuren, Evsuld"]
[Result "1/2-1/2"]
[ECO "B27"]
[WhiteElo "2471"]
[BlackElo "2171"]
[Annotator "TA"]
[PlyCount "85"]
[EventDate "2024.10.03"]
[EventType "swiss"]
[EventCountry "NOR"]
[SourceTitle "playchess.com"]
[Source "ChessBase"]
[SourceQuality "1"]
[TimeControl "40/6000:2400+30"]

{[%evp 9,85,0,6,-10,29,-27,-37,-28,16,-36,-4,0,-4,-18,59,0,0,0,4,14,11,15,30,8,36,35,38,22,45,34,43,43,49,11,5,-11,-25,0,52,0,0,10,22,0,0,0,54,37,46,29,154,143,133,129,117,0,0,0,88,0,0,0,0,0,0,0,0,0,0,0,0,0,0,0,0,0,0,0]} 1. e4 {[%emt 0:01:06]} c5 {[%emt 0:00:00]} 2. Nf3 {[%emt 0:00:00]} g6 {[%emt 0:00:00]} 3. c3 {[%emt 0:01:21]} d5 {[%emt 0:00:00]} 4. e5 {[%emt 0:03:24]} Nc6 {[%emt 0:04:56]} 5. h3 {[%emt 0:02:33]} Qa5 {[%emt 0:14:17]} 6. Na3 {[%emt 0:09:01]} Bd7 {[%emt 0:07:30]} 7. d3 {[%emt 0:07:50]} (7. Bb5 $142) 7... Bg7 $11 {[%emt 0:03:17]} 8. Bf4 {[%emt 0:08:38] Black is slightly better.} g5 {[%emt 0:14:48]} 9. Bg3 {[%emt 0:25:16]} (9. Bxg5 $11 Nxe5 10. Be2) 9... g4 {[%emt 0:06:54]} 10. hxg4 {[%emt 0:00:28]} Bxg4 {[%emt 0:00:00][%cal Og7e5]} 11. Be2 {[%emt 0:01:49]} e6 {[%emt 0:00:18]} (11... h5 $11) 12. Ng5 {[%emt 0:06:39]} (12. Nd2 $14 Bf5 13. f4) 12... Bxe2 {[%emt 0:00:00]} 13. Qxe2 {[%emt 0:00:00][%cal Oe2f3] With the idea Qf3!} h6 $1 {[%emt 0:00:19]} 14. Nf3 {[%emt 0:00:09]} Nge7 {[%emt 0:01:31]} 15. Kf1 {[%emt 0:00:50]} b5 {[%emt 0:00:50]} 16. d4 {[%emt 0:03:58]} c4 {[%emt 0:00:00]} 17. Nc2 {[%emt 0:00:13]} b4 {[%emt 0:01:20]} 18. Qd2 {[%emt 0:01:30]} bxc3 {[%emt 0:01:34]} 19. bxc3 {[%emt 0:00:00]} Rb8 {[%emt 0:00:00]} 20. Ne3 {[%emt 0:02:12]} Qa3 {[%emt 0:00:00]} 21. Kg1 {[%emt 0:02:52]} Ng6 {[%emt 0:10:59]} 22. Ng4 {[%emt 0:02:10]} Qb2 {[%emt 0:04:36]} 23. Qe1 {[%emt 0:00:56]} Qc2 {[%emt 0:02:17]} (23... h5 $11 24. Nf6+ Bxf6 25. exf6 Rb6) 24. Nf6+ {[%emt 0:01:26]} Bxf6 {[%emt 0:00:02]} 25. exf6 {[%emt 0:00:00]} Rb2 {[%emt 0:00:00][%cal Oh6h5]} 26. Nh4 {[%emt 0:04:55]} (26. Rh5 {with more complications.} Kd7 27. a4 Qe2 28. Qc1) 26... Nxh4 {[%emt 0:08:23]} 27. Rxh4 {[%emt 0:00:53]} Rxa2 {[%emt 0:01:23]} ({Black should try} 27... Nd8 $11) 28. Rxa2 $14 {[%emt 0:01:45]} Qxa2 {[%emt 0:00:00] Black is weak on the dark squares} 29. Qc1 {[%emt 0:00:16][%cal Oc1f4]} (29. Rh5 {is more complex.} Kd7 30. Kh2 Qc2 31. Qa1) 29... a5 {[%emt 0:02:10]} (29... Qa5 $11) 30. Qf4 $16 {[%emt 0:01:24][%mdl 1024] White has strong compensation. White is more active.} Qb1+ {[%emt 0:00:42]} (30... Qa1+ 31. Kh2 Qa4 (31... Qxc3 $2 32. Qd6 $18) 32. Qc7 $18 (32. Rxh6 Rxh6+ 33. Qxh6 Qc2 $11)) 31. Kh2 {[%emt 0:00:00]} Qb7 {[%emt 0:00:07] Prevents Qc7.} 32. Qg4 {[%emt 0:00:40] Hoping for Qg7.} (32. Rxh6 $6 Rxh6+ 33. Qxh6 Qb1 $11) 32... Qb1 $1 {[%emt 0:00:19]} 33. Qf4 {[%emt 0:00:52]} Qb7 {[%emt 0:00:00] [#] Inhibits Qc7.} 34. Rxh6 {[%emt 0:01:38]} (34. Qd6 $1 $16) 34... Rxh6+ $11 {[%emt 0:00:00] The position is equal.} 35. Qxh6 $16 {[%emt 0:00:00][%mdl 4096] Endgame. Qg7 would now be deadly. KQB-KQN} Qb1 $1 {[%emt 0:00:23]} 36. Bd6 {[%emt 0:01:33] And now Qf8+ would win.} Qg6 {[%emt 0:00:00]} 37. Qh8+ {[%emt 0:00:36]} Kd7 {[%emt 0:00:00]} 38. Bc5 {[%emt 0:00:00]} Qf5 {[%emt 0:02:27][%cal Oe6e5]} 39. Qg7 {[%emt 0:00:07]} Qh5+ {[%emt 0:01:39]} 40. Kg1 {[%emt 0:00:00] [#] Black must now prevent g4.} ({Don't play} 40. Kg3 e5 41. dxe5 Qxe5+ 42. f4 Qe6 $15 (42... Qxc3+ 43. Kh2 $11)) 40... Qd1+ {[%emt 0:00:06]} 41. Kh2 {[%emt 0:40:10]} Qh5+ {[%emt 0:40:37]} 42. Kg1 {[%emt 0:00:00] Threatens to win with g4.} ({Reject} 42. Kg3 e5 43. dxe5 Qxe5+ 44. f4 Qe6 $15 (44... Qxc3+ 45. Kh2 $11)) 42... Qd1+ {[%emt 0:00:00]} 43. Kh2 {[%emt 0:00:00] Weighted Error Value: White=0.20 (precise) /Black=0.17 (very precise) .  Mistake:       	White=4     	Black=4      Inaccurate:     	White=2     	Black=4      OK:         	White=9     	Black=10     Best:        	White=3     	Black=3      Strong:       	---       	Black=3} 1/2-1/2

[Event "Fagernes GM Open Autumn 2024"]
[Site "Fagernes"]
[Date "2024.10.06"]
[Round "1.11"]
[White "Advaitt Srikant Koduri"]
[Black "Aizenberg, Benny"]
[Result "0-1"]
[ECO "A48"]
[WhiteElo "2162"]
[BlackElo "2423"]
[Annotator "TA"]
[PlyCount "76"]
[EventDate "2024.10.03"]
[EventType "swiss"]
[EventCountry "NOR"]
[SourceTitle "playchess.com"]
[Source "ChessBase"]
[SourceQuality "1"]
[TimeControl "40/6000:2400+30"]

{[%evp 18,76,0,-4,0,-14,0,-5,14,0,22,17,18,12,26,31,31,39,38,18,23,21,19,14,25,8,13,18,32,4,0,0,0,-33,-30,-85,-73,-76,-86,-87,-88,-222,-227,-281,-281,-274,-261,-255,-264,-493,-480,-496,-506,-596,-602,-668,-661,-614,-586,-694,-594]} 1. d4 {[%emt 0:00:00]} Nf6 {[%emt 0:00:00]} 2. Nf3 {[%emt 0:00:00]} g6 {[%emt 0:00:00]} 3. Bf4 {[%emt 0:00:00]} Bg7 {[%emt 0:00:00]} 4. e3 {[%emt 0:00:00]} O-O {[%emt 0:00:00]} 5. Be2 {[%emt 0:00:00]} d6 {[%emt 0:00:00]} 6. h3 {[%emt 0:00:00]} c5 {[%emt 0:00:00]} 7. c3 {[%emt 0:01:12]} Qb6 {[%emt 0:00:00]} 8. Qb3 {[%emt 0:04:46]} Be6 {[%emt 0:00:00]} 9. Qxb6 {[%emt 0:00:00]} axb6 {[%emt 0:00:00]} 10. a3 {[%emt 0:00:00]} cxd4 {[%emt 0:00:00]} 11. exd4 {[%emt 0:15:43]} Nd5 {[%emt 0:00:00]} 12. Bh2 {[%emt 0:00:09]} Bh6 {[%emt 0:00:00] Die Stellung ist ausgeglichen.} 13. Nbd2 {[%emt 0:05:08]} Nf4 {[%emt 0:02:40]} 14. Bxf4 {[%emt 0:02:40]} Bxf4 {[%emt 0:00:00]} 15. O-O {[%emt 0:01:44]} Rc8 {[%emt 0:07:39]} 16. Rfe1 {[%emt 0:07:07]} Nd7 {[%emt 0:08:16]} 17. Bd3 {[%emt 0:02:42]} Nf6 {[%emt 0:03:37]} 18. g3 {[%emt 0:05:50]} Bh6 {[%emt 0:01:04]} 19. h4 {[%emt 0:00:26]} Rc7 {[%emt 0:07:40]} 20. Ng5 {[%emt 0:04:25][%cal Bf3g5,Bg5h3,Bh3f4,Bf4d3][%mdl 32]} Bd5 {[%emt 0:01:29]} 21. Re2 {[%emt 0:04:55]} Bg7 {[%emt 0:08:06]} 22. Rae1 {[%emt 0:02:22]} Kf8 {[%emt 0:03:25]} 23. f3 {[%emt 0:06:26]} h6 {[%emt 0:11:16]} 24. Nh3 {[%emt 0:00:30]} Bc6 {[%emt 0:00:00][%cal Oe7e5]} 25. Nf4 {[%emt 0:10:30][%cal Od3g6]} Rd8 {[%emt 0:05:45][%cal Oe7e5]} 26. Bb1 {[%emt 0:12:29] [#]} (26. Ng2 $11 {hält das Gleichgewicht.}) 26... e5 $1 $17 {[%emt 0:03:44]} 27. dxe5 {[%emt 0:02:17]} dxe5 {[%emt 0:00:00]} 28. Nd3 {[%emt 0:01:29]} Rcd7 {[%emt 0:04:16] Schwarz steht aktiver.} 29. Re3 {[%emt 0:01:13] [#] Danach ist Weiß chancenlos.} (29. Nc4 $17 {war die einzige Verteidigung.} Rxd3 30. Bxd3 Rxd3 31. Nxe5) 29... Nd5 $1 $19 {[%emt 0:06:51]} 30. R3e2 {[%emt 0:01:27][%cal Od2f1] [#]} Ne7 $1 {[%emt 0:00:00]} 31. Nc4 {[%emt 0:02:51]} Rxd3 {[%emt 0:00:01]} 32. Bxd3 {[%emt 0:00:01]} Rxd3 {[%emt 0:00:00]} 33. Nxe5 $2 {[%emt 0:00:07]} (33. Rd2 Rxd2 (33... Rxf3 $2 {ist das falsche Schlagen.} 34. Rd8+ Be8 35. Nd6 $18) 34. Nxd2) 33... Bxe5 {[%emt 0:00:00] Schwarz steht klar auf Gewinn.} 34. Rxe5 {[%emt 0:00:00]} Nf5 {[%emt 0:00:00]} 35. Kh2 {[%emt 0:00:00]} Bxf3 {[%emt 0:00:28] Weiss muss nun ...Rd2+ beachten.} 36. Kh3 {[%emt 0:00:23]} h5 {[%emt 0:00:00] Und jetzt ...Rd2 wäre schön.} 37. Rf1 {[%emt 0:00:23]} Bg4+ {[%emt 0:00:00]} 38. Kg2 {[%emt 0:00:00]} Ne3+ {[%emt 0:00:00] Gewichteter Fehlerwert: Weiß=0.35/Schwarz=0.05 (makellos) .  Fehler:       	Weiß=3     	---        Ungenau:       	Weiß=2     	---        OK:         	Weiß=7     	Schwarz=12    Bester:       	---       	Schwarz=1     Stark:        	---       	Schwarz=2     Brilliant:      	---       	Schwarz=1} 0-1